fUST/lending_fUST_20240707
["ID","MTS","AMOUNT","RATE_DAILY","PERIOD"]
[331402258,1720347105326,-500.0,0.00044109,120]
[331402259,1720347105342,-500.0,0.00044109,120]
[331402260,1720347105357,-500.0,0.00044109,120]
[331402261,1720347105373,-500.0,0.00044109,120]
[331402262,1720347105387,-500.0,0.00044109,120]
[331402263,1720347105402,-500.0,0.00044109,120]
[331402264,1720347105417,-500.0,0.00044109,120]
[331402265,1720347105432,-500.0,0.00044109,120]
[331402266,1720347105447,-280.73,0.00044109,120]
[331402267,1720347105462,-500.0,0.00044109,120]
[331402268,1720347105477,-500.0,0.00044109,120]
[331402269,1720347105493,-500.0,0.00044109,120]
[331402270,1720347105666,-506.68,0.00044109,120]
[331402271,1720347105695,-522.9,0.00044109,120]
[331402272,1720347105705,-532.7,0.00044109,120]
[331402273,1720347105715,-500.0,0.00044109,120]
[331402274,1720347105725,-500.0,0.00044109,120]
[331402275,1720347105735,-513.89317114,0.00044109,120]
[331402276,1720347105745,-500.68969646,0.00044109,120]
[331402277,1720347105755,-23870.39,0.00044109,120]
[331402278,1720347105765,-730.55,0.00044109,120]
[331402279,1720347105774,-500.0,0.00044109,120]
[331402280,1720347105783,-151.0,0.00044109,14]
[331402281,1720347105799,-151.0,0.00044109,14]
[331402282,1720347105808,-192.879941,0.00044109,14]
[331402283,1720347105818,-151.0,0.00044109,14]
[331402284,1720347105828,-151.0,0.00044109,14]
[331402285,1720347105839,-151.0,0.00044109,14]
[331402286,1720347105848,-151.0,0.00044109,14]
[331402287,1720347105858,-151.0,0.00044109,14]
[331402288,1720347105868,-151.0,0.00044109,14]
[331402289,1720347105877,-151.0,0.00044109,14]
[331402290,1720347105887,-151.0,0.00044109,14]
[331402291,1720347105896,-151.0,0.00044109,14]
[331402292,1720347105906,-151.0,0.00044109,14]
[331402293,1720347105917,-151.0,0.00044109,14]
[331402294,1720347105927,-237.477925,0.00044109,14]
[331402295,1720347105936,-151.0,0.00044109,14]
[331402296,1720347105947,-151.0,0.00044109,14]
[331402297,1720347105956,-151.0,0.00044109,14]
[331402298,1720347105968,-151.0,0.00044109,14]
[331402299,1720347105978,-151.0,0.00044109,14]
[331402300,1720347105988,-151.0,0.00044109,14]
[331402301,1720347105997,-151.0,0.00044109,14]
[331402302,1720347106007,-151.0,0.00044109,14]
[331402303,1720347106017,-151.0,0.00044109,14]
[331402304,1720347106027,-151.0,0.00044109,14]
[331402305,1720347106036,-190.460698,0.00044109,14]
[331402306,1720347106046,-151.0,0.00044109,14]
[331402307,1720347106055,-152.404395,0.00044109,14]
[331402308,1720347106064,-210.907925,0.00044109,14]
[331402309,1720347106074,-210.907925,0.00044109,14]
[331402310,1720347106084,-210.907925,0.00044109,14]
[331402311,1720347106093,-210.907925,0.00044109,14]
[331402312,1720347106105,-210.907925,0.00044109,14]
[331402313,1720347106115,-210.907925,0.00044109,14]
[331402314,1720347106124,-210.907925,0.00044109,14]
[331402315,1720347106134,-210.907925,0.00044109,14]
[331402316,1720347106144,-240.172522,0.00044109,14]
[331402317,1720347106154,-240.172522,0.00044109,14]
[331402318,1720347106163,-240.172522,0.00044109,14]
[331402319,1720347106175,-240.172522,0.00044109,14]
[331402320,1720347106184,-240.172522,0.00044109,14]
[331402321,1720347106194,-240.172522,0.00044109,14]
[331402322,1720347106203,-240.172522,0.00044109,14]
[331402323,1720347106213,-240.172522,0.00044109,14]
[331402324,1720347106223,-256.613759,0.00044109,14]
[331402325,1720347106233,-170.714717,0.00044109,14]
[331402326,1720347106243,-683.0,0.00044109,30]
[331402327,1720347106252,-683.0,0.00044109,30]
[331402328,1720347106262,-683.0,0.00044109,30]
[331402329,1720347106272,-280.66040776,0.00044111,2]
[331402330,1720347106282,-1167.97586208,0.00044209,30]
[331402331,1720347106291,-1167.97586208,0.00044227,30]
[331402332,1720347106301,-1045.05367777,0.00044288,30]
[331402333,1720347106310,-154.7557292,0.00044288,30]
[331402334,1720347106320,-2728.63175959,0.00044295,30]
[331402335,1720347106330,-1167.97586208,0.00044359,30]
[331402336,1720347106339,-14147.3994915,0.00044383,61]
[331402337,1720347106349,-488.12076297,0.00044383,120]
[331402338,1720347106358,-501.28517766,0.00044383,120]
[331402339,1720347106368,-539.93,0.00044383,120]
[331402340,1720347106378,-500.0,0.00044383,120]
[331402341,1720347106387,-863.71,0.00044383,120]
[331402342,1720347106396,-500.0,0.00044383,120]
[331402343,1720347106405,-758.3,0.00044383,120]
[331402344,1720347106415,-2277.09,0.00044383,120]
[331402345,1720347106424,-500.0,0.00044383,120]
[331402346,1720347106434,-500.0,0.00044383,120]
[331402347,1720347106443,-3622.16,0.00044383,120]
[331402348,1720347106453,-500.0,0.00044383,120]
[331402349,1720347106462,-4420.68,0.00044383,120]
[331402350,1720347106473,-2729.24,0.00044383,120]
[331402351,1720347106483,-631.33275388,0.00044383,120]
[331402352,1720347106493,-1418.25,0.00044383,120]
[331402353,1720347106503,-2088.03,0.00044383,120]
[331402354,1720347106512,-28020.05,0.00044383,120]
[331402355,1720347106522,-500.0,0.00044383,120]
[331402356,1720347106532,-1013.3,0.00044383,120]
[331402357,1720347106541,-500.0,0.00044383,120]
[331402358,1720347106551,-1928.91,0.00044383,120]
[331402359,1720347106561,-500.0,0.00044383,120]
[331402360,1720347106571,-16482.27,0.00044383,120]
[331402361,1720347106581,-500.0,0.00044383,120]
[331402362,1720347106590,-284.42713309,0.00044383,120]
[331402363,1720347106599,-500.21215348,0.00044383,120]
[331402364,1720347106609,-500.0,0.00044383,120]
[331402365,1720347106619,-500.0,0.00044383,120]
[331402366,1720347106629,-500.0,0.00044383,120]
[331402367,1720347106638,-1391.73,0.00044383,120]
[331402368,1720347106648,-500.0,0.00044383,120]
[331402369,1720347106658,-980.42,0.00044383,120]
[331402370,1720347106669,-500.0,0.00044383,120]
[331402371,1720347106678,-717.05,0.00044383,60]
[331402372,1720347106687,-500.0,0.00044383,120]
[331402373,1720347106696,-447.45186197,0.00044383,120]
[331402374,1720347106706,-500.0,0.00044383,120]
[331402375,1720347106715,-500.0,0.00044383,120]
[331402376,1720347106725,-1322.06,0.00044383,120]
[331402377,1720347106735,-1100.84,0.00044383,120]
[331402378,1720347106744,-500.0,0.00044383,120]
[331402379,1720347106754,-500.0,0.00044383,120]
[331402380,1720347106763,-2540.19,0.00044383,120]
[331402381,1720347106773,-512.93340753,0.00044383,120]
[331402382,1720347106782,-544.99,0.00044383,120]
[331402383,1720347106797,-1098.97,0.00044383,120]
[331402384,1720347106807,-500.0,0.00044383,120]
[331402385,1720347106816,-553.90441672,0.00044383,120]
[331402386,1720347106826,-500.0,0.00044383,120]
[331402387,1720347106838,-1343.21,0.00044383,120]
[331402388,1720347106848,-500.0,0.00044383,120]
[331402389,1720347106858,-500.0,0.00044383,120]
[331402390,1720347106870,-500.0,0.00044383,120]
[331402391,1720347106880,-500.0,0.00044383,120]
[331402392,1720347106890,-500.0,0.00044383,120]
[331402393,1720347106899,-500.0,0.00044383,120]
[331402394,1720347106910,-500.0,0.00044383,120]
[331402395,1720347106921,-500.0,0.00044383,120]
[331402396,1720347106930,-500.0,0.00044383,120]
[331402397,1720347106940,-504.93741519,0.00044383,120]
[331402398,1720347106950,-500.0,0.00044383,120]
[331402399,1720347106960,-500.0,0.00044383,120]
[331402400,1720347106970,-538.12,0.00044383,120]
[331402401,1720347106980,-500.0,0.00044383,120]
[331402402,1720347106991,-500.0,0.00044383,120]
[331402403,1720347107000,-933.38,0.00044383,120]
[331402404,1720347107010,-500.0,0.00044383,120]
[331402405,1720347107020,-500.0,0.00044383,120]
[331402406,1720347107029,-500.0,0.00044383,120]
[331402407,1720347107039,-500.0,0.00044383,120]
[331402408,1720347107048,-500.0,0.00044383,120]
[331402409,1720347107057,-645.75,0.00044383,120]
[331402410,1720347107067,-500.0,0.00044383,120]
[331402411,1720347107076,-500.0,0.00044383,120]
[331402412,1720347107086,-226.95995148,0.00044383,120]
[331402413,1720347107095,-500.0,0.00044383,120]
[331402414,1720347107104,-500.0,0.00044383,120]
[331402415,1720347107115,-1587.98,0.00044383,120]
[331402416,1720347107124,-500.0,0.00044383,120]
[331402417,1720347107134,-500.0,0.00044383,120]
[331402418,1720347107143,-500.0,0.00044383,120]
[331402419,1720347107153,-500.0,0.00044383,120]
[331402420,1720347107162,-1804.61,0.00044383,120]
[331402421,1720347107172,-500.0,0.00044383,120]
[331402422,1720347107182,-500.0,0.00044383,120]
[331402423,1720347107191,-1400.55,0.00044383,120]
[331402424,1720347107201,-500.0,0.00044383,120]
[331402425,1720347107210,-500.0,0.00044383,120]
[331402426,1720347107220,-764.78,0.00044383,120]
[331402427,1720347107229,-500.0,0.00044383,120]
[331402428,1720347107238,-553.40175546,0.00044383,120]
[331402429,1720347107248,-500.0,0.00044383,120]
[331402430,1720347107257,-638.28,0.00044383,120]
[331402431,1720347107266,-500.0,0.00044383,120]
[331402432,1720347107275,-993.07,0.00044383,120]
[331402433,1720347107285,-500.0,0.00044383,120]
[331402434,1720347107295,-500.0,0.00044383,120]
[331402435,1720347107305,-500.0,0.00044383,120]
[331402436,1720347107314,-500.0,0.00044383,120]
[331402437,1720347107323,-879.0,0.00044383,120]
[331402438,1720347107333,-500.0,0.00044383,120]
[331402439,1720347107342,-1084.46,0.00044383,120]
[331402440,1720347107351,-2280.31,0.00044383,120]
[331402441,1720347107360,-506.68,0.00044383,120]
[331402442,1720347107370,-1460.56,0.00044383,120]
[331402443,1720347107379,-500.0,0.00044383,120]
[331402444,1720347107389,-1174.74,0.00044383,120]
[331402445,1720347107398,-500.0,0.00044383,120]
[331402446,1720347107408,-500.0,0.00044383,120]
[331402447,1720347107418,-500.0,0.00044383,120]
[331402448,1720347107428,-547.7,0.00044383,120]
[331402449,1720347107438,-500.0,0.00044383,120]
[331402450,1720347107447,-1275.26,0.00044383,120]
[331402451,1720347107457,-500.0,0.00044383,120]
[331402452,1720347107468,-500.0,0.00044383,120]
[331402453,1720347107478,-620.89,0.00044383,120]
[331402454,1720347107488,-2777.24,0.00044383,120]
[331402455,1720347107497,-500.0,0.00044383,120]
[331402456,1720347107506,-608.36,0.00044383,120]
[331402457,1720347107516,-500.0,0.00044383,120]
[331402458,1720347107525,-500.0,0.00044383,120]
[331402459,1720347107536,-500.0,0.00044383,120]
[331402460,1720347107545,-2122.75,0.00044383,120]
[331402461,1720347107556,-500.0,0.00044383,120]
[331402462,1720347107566,-1260.56,0.00044383,120]
[331402463,1720347107577,-590.79,0.00044383,120]
[331402464,1720347107586,-500.0,0.00044383,120]
[331402465,1720347107596,-500.0,0.00044383,120]
[331402466,1720347107606,-595.38,0.00044383,120]
[331402467,1720347107615,-844.48,0.00044383,120]
[331402468,1720347107624,-1266.15,0.00044383,120]
[331402469,1720347107633,-500.0,0.00044383,120]
[331402470,1720347107643,-500.0,0.00044383,120]
[331402471,1720347107653,-500.0,0.00044383,120]
[331402472,1720347107662,-500.0,0.00044383,120]
[331402473,1720347107672,-33955.97,0.00044383,120]
[331402474,1720347107682,-505.02118583,0.00044383,120]
[331402475,1720347107693,-1229.15,0.00044383,120]
[331402476,1720347107704,-500.0,0.00044383,120]
[331402477,1720347107714,-562.83172238,0.00044383,120]
[331402478,1720347107724,-500.0,0.00044383,120]
[331402479,1720347107734,-500.0,0.00044383,120]
[331402480,1720347107866,-500.0,0.00044383,120]
[331402481,1720347107877,-500.0,0.00044383,120]
[331402482,1720347107887,-500.0,0.00044383,120]
[331402483,1720347107897,-620.32,0.00044383,120]
[331402484,1720347107906,-500.0,0.00044383,120]
[331402485,1720347107916,-500.0,0.00044383,120]
[331402486,1720347107926,-500.0,0.00044383,120]
[331402487,1720347107935,-1166.72,0.00044383,120]
[331402488,1720347107945,-1466.22,0.00044383,120]
[331402489,1720347107955,-500.0,0.00044383,120]
[331402490,1720347107965,-500.0,0.00044383,120]
[331402491,1720347107975,-502.03299405,0.00044383,120]
[331402492,1720347107984,-628.61,0.00044383,120]
[331402493,1720347107994,-529.53,0.00044383,120]
[331402494,1720347108004,-500.0,0.00044383,120]
[331402495,1720347108013,-500.0,0.00044383,120]
[331402496,1720347108023,-500.0,0.00044383,120]
[331402497,1720347108033,-500.0,0.00044383,120]
[331402498,1720347108042,-500.0,0.00044383,120]
[331402499,1720347108051,-500.0,0.00044383,120]
[331402500,1720347108061,-500.0,0.00044383,120]
[331402501,1720347108071,-500.0,0.00044383,120]
[331402502,1720347108080,-1741.41,0.00044383,120]
[331402503,1720347108089,-500.0,0.00044383,120]
[331402504,1720347108099,-500.0,0.00044383,120]
[331402505,1720347108110,-500.0,0.00044383,120]
[331402506,1720347108120,-2706.55,0.00044383,120]
[331402507,1720347108130,-500.0,0.00044383,120]
[331402508,1720347108139,-500.0,0.00044383,120]
[331402509,1720347108149,-1189.37,0.00044383,120]
[331402510,1720347108158,-509.74369499,0.00044383,120]
[331402511,1720347108168,-500.0,0.00044383,120]
[331402512,1720347108180,-500.0,0.00044383,120]
[331402513,1720347108189,-500.0,0.00044383,120]
[331402514,1720347108202,-500.0,0.00044383,120]
[331402515,1720347108214,-500.0,0.00044383,120]
[331402516,1720347108224,-500.0,0.00044383,120]
[331402517,1720347108234,-1679.86,0.00044383,120]
[331402518,1720347108243,-500.0,0.00044383,120]
[331402519,1720347108253,-500.0,0.00044383,120]
[331402520,1720347108262,-500.0,0.00044383,120]
[331402521,1720347108272,-844.82,0.00044383,120]
[331402522,1720347108281,-556.29117717,0.00044383,120]
[331402523,1720347108291,-564.97,0.00044383,120]
[331402524,1720347108300,-580.73930449,0.00044383,120]
[331402525,1720347108310,-500.0,0.00044383,120]
[331402526,1720347108319,-1297.58,0.00044383,120]
[331402527,1720347108330,-1090.22,0.00044383,120]
[331402528,1720347108339,-500.0,0.00044383,120]
[331402529,1720347108349,-500.0,0.00044383,120]
[331402530,1720347108359,-500.0,0.00044383,120]
[331402531,1720347108368,-500.0,0.00044383,120]
[331402532,1720347108378,-1360.1,0.00044383,120]
[331402533,1720347108388,-731.34,0.00044383,120]
[331402534,1720347108397,-500.0,0.00044383,120]
[331402535,1720347108407,-500.0,0.00044383,120]
[331402536,1720347108417,-500.0,0.00044383,120]
[331402537,1720347108427,-500.0,0.00044383,120]
[331402538,1720347108436,-500.0,0.00044383,120]
[331402539,1720347108446,-500.0,0.00044383,120]
[331402540,1720347108455,-1170.99,0.00044383,120]
[331402541,1720347108465,-500.0,0.00044383,120]
[331402542,1720347108474,-17957.62,0.00044383,120]
[331402543,1720347108484,-500.0,0.00044383,120]
[331402544,1720347108493,-500.0,0.00044383,120]
[331402545,1720347108503,-538.81927038,0.00044383,120]
[331402546,1720347108513,-500.0,0.00044383,120]
[331402547,1720347108523,-2155.79,0.00044383,120]
[331402548,1720347108533,-500.0,0.00044383,120]
[331402549,1720347108542,-500.0,0.00044383,120]
[331402550,1720347108552,-692.59,0.00044383,120]
[331402551,1720347108561,-990.62,0.00044383,120]
[331402552,1720347108570,-760.13,0.00044383,120]
[331402553,1720347108580,-500.0,0.00044383,120]
[331402554,1720347108590,-500.0,0.00044383,120]
[331402555,1720347108599,-500.0,0.00044383,120]
[331402556,1720347108608,-959.76,0.00044383,120]
[331402557,1720347108618,-1274.08,0.00044383,120]
[331402558,1720347108627,-19633.38,0.00044383,120]
[331402559,1720347108636,-500.0,0.00044383,120]
[331402560,1720347108645,-500.0,0.00044383,120]
[331402561,1720347108655,-806.21,0.00044383,120]
[331402562,1720347108664,-500.0,0.00044383,120]
[331402563,1720347108674,-500.0,0.00044383,120]
[331402564,1720347108683,-500.0,0.00044383,120]
[331402565,1720347108692,-500.0,0.00044383,120]
[331402566,1720347108702,-500.0,0.00044383,120]
[331402567,1720347108712,-834.54,0.00044383,120]
[331402568,1720347108722,-555.67,0.00044383,120]
[331402569,1720347108731,-500.0,0.00044383,120]
[331402570,1720347108741,-504.67055399,0.00044383,120]
[331402571,1720347108751,-886.97,0.00044383,120]
[331402572,1720347108761,-500.0,0.00044383,120]
[331402573,1720347108771,-868.77,0.00044383,120]
[331402574,1720347108780,-997.77,0.00044383,120]
[331402575,1720347108793,-1022.9,0.00044383,120]
[331402576,1720347108802,-500.0,0.00044383,120]
[331402577,1720347108812,-175.05565629,0.00044383,120]
[331402578,1720347108822,-686.48,0.00044383,120]
[331402579,1720347108833,-513.11429772,0.00044383,120]
[331402580,1720347108843,-500.0,0.00044383,120]
[331402581,1720347108854,-3272.31,0.00044383,120]
[331402582,1720347108865,-500.0,0.00044383,120]
[331402583,1720347108875,-500.0,0.00044383,120]
[331402584,1720347108884,-500.0,0.00044383,120]
[331402585,1720347108893,-500.0,0.00044383,120]
[331402586,1720347108905,-500.0,0.00044383,120]
[331402587,1720347108917,-500.0,0.00044383,120]
[331402588,1720347108927,-500.0,0.00044383,2]
[331402589,1720347108937,-800.53,0.00044383,120]
[331402590,1720347108947,-764.61,0.00044383,120]
[331402591,1720347108959,-508.15630402,0.00044383,120]
[331402592,1720347108969,-504.51842998,0.00044383,120]
[331402593,1720347108978,-500.0,0.00044383,120]
[331402594,1720347108988,-500.0,0.00044383,120]
[331402595,1720347108999,-515.08,0.00044383,120]
[331402596,1720347109009,-500.0,0.00044383,120]
[331402597,1720347109019,-500.0,0.00044383,120]
[331402598,1720347109029,-500.0,0.00044383,120]
[331402599,1720347109038,-500.0,0.00044383,120]
[331402600,1720347109048,-652.59,0.00044383,120]
[331402601,1720347109057,-500.0,0.00044383,120]
[331402602,1720347109067,-539.31,0.00044383,120]
[331402603,1720347109076,-500.0,0.00044383,120]
[331402604,1720347109086,-3819.92,0.00044383,120]
[331402605,1720347109096,-1472.32,0.00044383,7]
[331402606,1720347109106,-500.0,0.00044383,120]
[331402607,1720347109117,-500.0,0.00044383,120]
[331402608,1720347109127,-529.59,0.00044383,120]
[331402609,1720347109137,-2352.27,0.00044383,120]
[331402610,1720347109146,-500.0,0.00044383,120]
[331402611,1720347109156,-500.0,0.00044383,120]
[331402612,1720347109166,-777.74,0.00044383,120]
[331402613,1720347109179,-568.89087196,0.00044383,120]
[331402614,1720347109188,-500.0,0.00044383,120]
[331402615,1720347109201,-780.73,0.00044383,120]
[331402616,1720347109212,-500.0,0.00044383,120]
[331402617,1720347109222,-500.0,0.00044383,120]
[331402618,1720347109232,-500.0,0.00044383,120]
[331402619,1720347109242,-500.0,0.00044383,120]
[331402620,1720347109254,-500.0,0.00044383,120]
[331402621,1720347109264,-671.8,0.00044383,120]
[331402622,1720347109276,-2174.43,0.00044383,120]
[331402623,1720347109286,-6995.33,0.00044383,120]
[331402624,1720347109296,-1875.52,0.00044383,120]
[331402625,1720347109306,-188.92776698,0.00044383,120]
[331402626,1720347109316,-500.0,0.00044383,120]
[331402627,1720347109326,-1180.04,0.00044383,120]
[331402628,1720347109336,-500.6,0.00044383,120]
[331402629,1720347109345,-500.0,0.00044383,120]
[331402630,1720347109355,-1990.29,0.00044383,120]
[331402631,1720347109366,-500.0,0.00044383,120]
[331402632,1720347109376,-500.0,0.00044383,120]
[331402633,1720347109386,-1014.07,0.00044383,120]
[331402634,1720347109396,-500.0,0.00044383,120]
[331402635,1720347109406,-500.0,0.00044383,120]
[331402636,1720347109416,-1365.67,0.00044383,120]
[331402637,1720347109427,-534.87,0.00044383,120]
[331402638,1720347109437,-342.57574777,0.00044383,120]
[331402639,1720347109447,-500.0,0.00044383,120]
[331402640,1720347109457,-668.62,0.00044383,120]
[331402641,1720347109468,-500.0,0.00044383,120]
[331402642,1720347109479,-635.74472654,0.00044383,120]
[331402643,1720347109491,-693.64,0.00044383,120]
[331402644,1720347109501,-500.0,0.00044383,120]
[331402645,1720347109511,-67758.47,0.00044383,120]
[331402646,1720347109521,-627.2,0.00044383,120]
[331402647,1720347109530,-800.11,0.00044383,120]
[331402648,1720347109540,-5309.62,0.00044383,120]
[331402649,1720347109550,-1034.58,0.00044383,120]
[331402650,1720347109560,-1285.7,0.00044383,120]
[331402651,1720347109569,-2445.93,0.00044383,120]
[331402652,1720347109579,-508.27,0.00044383,120]
[331402653,1720347109588,-500.0,0.00044383,120]
[331402654,1720347109597,-500.0,0.00044383,120]
[331402655,1720347109608,-1752.72,0.00044383,120]
[331402656,1720347109618,-500.0,0.00044383,120]
[331402657,1720347109630,-500.0,0.00044383,120]
[331402658,1720347109639,-500.0,0.00044383,120]
[331402659,1720347109651,-8208.23,0.00044383,120]
[331402660,1720347109661,-11051.01,0.00044383,120]
[331402661,1720347109673,-11970.34,0.00044383,120]
[331402662,1720347109682,-500.0,0.00044383,120]
[331402663,1720347109691,-9627.04,0.00044383,120]
[331402664,1720347109700,-500.0,0.00044383,120]
[331402665,1720347109710,-500.0,0.00044383,120]
[331402666,1720347109719,-500.0,0.00044383,120]
[331402667,1720347109730,-500.0,0.00044383,120]
[331402668,1720347109740,-5688.11,0.00044383,120]
[331402669,1720347109751,-4717.24,0.00044383,120]
[331402670,1720347109763,-500.0,0.00044383,120]
[331402671,1720347109774,-4429.83,0.00044383,120]
[331402672,1720347109786,-4266.09,0.00044383,120]
[331402673,1720347109799,-297.49,0.00044383,120]
[331402674,1720347109809,-260.99600877,0.00044383,120]
[331402675,1720347109821,-500.0,0.00044383,120]
[331402676,1720347109831,-500.0,0.00044383,120]
[331402677,1720347109843,-500.0,0.00044383,120]
[331402678,1720347109853,-2704.38,0.00044383,120]
[331402679,1720347109862,-1021.51,0.00044383,120]
[331402680,1720347109877,-1541.47,0.00044383,120]
[331402681,1720347109889,-748.13,0.00044383,120]
[331402682,1720347109900,-924.03,0.00044383,120]
[331402683,1720347109910,-500.0,0.00044383,120]
[331402684,1720347109920,-500.0,0.00044383,120]
[331402685,1720347109930,-501.62237539,0.00044383,120]
[331402686,1720347109939,-500.0,0.00044383,120]
[331402687,1720347109949,-478.26592364,0.00044383,120]
[331402688,1720347109959,-376.05,0.00044383,120]
[331402689,1720347109969,-500.0,0.00044383,120]
[331402690,1720347109979,-500.0,0.00044383,120]
[331402691,1720347109989,-500.0,0.00044383,120]
[331402692,1720347109999,-844.26,0.00044383,120]
[331402693,1720347110010,-500.0,0.00044383,120]
[331402694,1720347110020,-12793.66,0.00044383,120]
[331402695,1720347110030,-500.0,0.00044383,120]
[331402696,1720347110040,-500.0,0.00044383,120]
[331402697,1720347110050,-500.0,0.00044383,120]
[331402698,1720347110060,-896.63,0.00044383,120]
[331402699,1720347110069,-618.83,0.00044383,120]
[331402700,1720347110078,-314.46173403,0.00044383,120]
[331402701,1720347110087,-500.0,0.00044383,120]
[331402702,1720347110099,-7734.13,0.00044383,21]
[331402703,1720347110111,-500.0,0.00044383,120]
[331402704,1720347110121,-6948.55,0.00044383,120]
[331402705,1720347110131,-2118.44,0.00044383,120]
[331402706,1720347110143,-500.0,0.00044383,120]
[331402707,1720347110153,-500.0,0.00044383,120]
[331402708,1720347110162,-510.18864047,0.00044383,120]
[331402709,1720347110172,-1933.54,0.00044383,21]
[331402710,1720347110181,-1280.73,0.00044383,120]
[331402711,1720347110193,-11105.94,0.00044383,120]
[331402712,1720347110203,-500.0,0.00044383,120]
[331402713,1720347110212,-984.09,0.00044383,120]
[331402714,1720347110221,-500.0,0.00044383,120]
[331402715,1720347110231,-500.0,0.00044383,120]
[331402716,1720347110240,-500.0,0.00044383,120]
[331402717,1720347110249,-500.0,0.00044383,120]
[331402718,1720347110260,-772.24,0.00044383,120]
[331402719,1720347110270,-6036.83,0.00044383,120]
[331402720,1720347110281,-500.0,0.00044383,120]
[331402721,1720347110291,-500.0,0.00044383,120]
[331402722,1720347110300,-2113.87,0.00044383,120]
[331402723,1720347110310,-500.0,0.00044383,120]
[331402724,1720347110319,-15042.94,0.00044383,120]
[331402725,1720347110329,-887.89,0.00044383,120]
[331402726,1720347110339,-887.89,0.00044383,120]
[331402727,1720347110349,-500.0,0.00044383,120]
[331402728,1720347110359,-500.0,0.00044383,120]
[331402729,1720347110368,-500.0,0.00044383,120]
[331402730,1720347110379,-1240.73,0.00044383,120]
[331402731,1720347110390,-500.0,0.00044383,120]
[331402732,1720347110403,-500.0,0.00044383,120]
[331402733,1720347110412,-688.3,0.00044383,120]
[331402734,1720347110422,-600.4,0.00044383,120]
[331402735,1720347110432,-4477.61,0.00044383,120]
[331402736,1720347110443,-1561.9,0.00044383,120]
[331402737,1720347110456,-5599.32,0.00044383,120]
[331402738,1720347110467,-500.0,0.00044383,120]
[331402739,1720347110478,-500.0,0.00044383,120]
[331402740,1720347110488,-500.0,0.00044383,120]
[331402741,1720347110500,-159.06128995,0.00044383,120]
[331402742,1720347110510,-626.43,0.00044383,120]
[331402743,1720347110520,-500.0,0.00044383,120]
[331402744,1720347110530,-1633.14,0.00044383,120]
[331402745,1720347110540,-2966.16,0.00044383,120]
[331402746,1720347110552,-381.62277156,0.00044383,120]
[331402747,1720347110563,-500.0,0.00044383,120]
[331402748,1720347110573,-469.79995973,0.00044383,120]
[331402749,1720347110584,-500.0,0.00044383,120]
[331402750,1720347110594,-500.0,0.00044383,120]
[331402751,1720347110603,-757.52,0.00044383,120]
[331402752,1720347110613,-1087.62,0.00044383,120]
[331402753,1720347110624,-405.30829615,0.00044383,120]
[331402754,1720347110634,-500.0,0.00044383,120]
[331402755,1720347110645,-500.0,0.00044383,120]
[331402756,1720347110654,-667.57,0.00044383,120]
[331402757,1720347110664,-500.0,0.00044383,120]